bitfinex/quotes_ETHUSD_20241129
["timestamp","ask_amount","ask_price","bid_price","bid_amount"]
[1732908044385,1.5498,3571.1,3570.5,3.35066]
[1732908044693,0.05604237,3571.0,3570.8,4.88684]
[1732908044978,0.05604237,3571.0,3570.9,1.038684]
[1732908045200,2.79989,3571.6,3571.1,0.55]
[1732908046194,2.79989,3571.6,3570.9,0.55]
[1732908046446,2.80002,3571.4,3570.9,0.55]
[1732908046565,2.80002,3571.4,3570.9,3.35039]
[1732908046771,2.79994,3571.5,3570.9,3.35039]
[1732908047360,0.05678669,3571.4,3570.9,3.35039]
[1732908047758,0.05678669,3571.4,3571.1,0.55]
[1732908048274,2.79984,3571.7,3571.1,3.35024]
[1732908048467,0.0567432,3571.3,3571.1,3.35024]
[1732908048670,2.79984,3571.7,3571.1,3.35024]
[1732908048897,0.05669971,3571.2,3571.1,3.35024]
[1732908049197,2.79986,3571.6,3571.1,3.35024]
[1732908049385,0.05683018,3571.5,3571.1,3.35024]
[1732908050098,0.05683018,3571.5,3571.4,3.35002]
[1732908050261,2.79943,3572.2,3571.4,3.35002]
[1732908050465,2.79943,3572.2,3571.7,3.34978]
[1732908050990,0.05712243,3572.1,3571.7,3.34978]
[1732908051157,0.05712243,3572.1,3571.5,0.55]
[1732908051499,0.05712243,3572.1,3571.7,0.55]
[1732908052300,0.05712243,3572.1,3571.7,3.34978]
[1732908052744,2.79932,3572.3,3571.7,3.34978]
[1732908053090,0.05692364,3572.2,3571.7,3.34978]
[1732908057729,0.05692364,3572.2,3571.9,0.55]
[1732908058032,2.79932,3572.3,3571.7,3.34978]
[1732908058236,0.05663566,3572.2,3571.7,3.34978]
[1732908059948,0.05663566,3572.2,3572.1,3.34947]
[1732908060237,1.5841,3572.7,3572.1,3.34947]
[1732908060407,4.38311,3572.7,3572.2,0.55]
[1732908062020,1.5841,3572.7,3572.4,3.34919]
[1732908062214,1.5841,3572.7,3572.3,2.79929]
[1732908062215,4.35888,3573.0,3572.6,0.55]
[1732908062605,4.35888,3573.0,3572.4,0.55]
[1732908062812,2.79889,3572.9,3572.4,0.55]
[1732908063295,0.05713331,3572.8,3572.4,0.55]
[1732908063501,2.85611331,3572.8,3572.2,3.34937]
[1732908063721,2.79899,3572.8,3572.2,1.322471]
[1732908063952,0.05710674,3572.7,3572.2,1.322471]
[1732908064239,2.85612674,3572.7,3572.2,1.322471]
[1732908064412,2.7991,3572.6,3572.2,1.322471]
[1732908064602,0.05710674,3572.7,3572.2,1.322471]
[1732908064935,2.79897,3572.8,3572.2,1.322471]
[1732908064936,0.05732418,3572.6,3572.2,1.322471]
[1732908065339,2.79897,3572.8,3572.2,4.121851]
[1732908065520,1.6562,3572.4,3571.8,2.31541166]
[1732908065723,1.6562,3572.4,3571.8,5.79967]
[1732908066037,0.05581665,3572.3,3571.9,2.79957]
[1732908066234,2.79916,3572.5,3571.9,2.79957]
[1732908066536,0.05587703,3572.4,3571.9,2.79957]
[1732908066746,0.05587703,3572.4,3571.9,3.88800629]
[1732908066909,0.05587703,3572.4,3572.0,0.55]
[1732908067115,0.05587703,3572.4,3572.2,0.55]
[1732908067313,4.37418,3572.6,3572.0,0.55]
[1732908067518,0.05639252,3572.3,3572.0,0.55]
[1732908067697,1.5751,3572.6,3572.2,0.55]
[1732908068402,2.79901,3572.7,3572.2,0.55]
[1732908069038,2.79911,3572.6,3572.2,0.55]
[1732908069204,0.56490656,3573.6,3572.1,2.28040063]
[1732908069205,1.6357,3573.1,3572.6,2.205]
[1732908069402,1.6357,3573.5,3572.6,2.23298795]
[1732908070057,2.79854,3573.3,3572.8,0.55]
[1732908070206,1.6357,3573.5,3572.8,3.34892]
[1732908070207,4.43411,3573.5,3572.8,3.34892]
[1732908070416,2.79847,3573.4,3572.8,3.34892]
[1732908071027,0.0550074,3573.3,3572.7,0.55]
[1732908071244,0.0550074,3573.3,3572.9,0.55]
[1732908071404,0.0550074,3573.3,3573.2,1.5618]
[1732908071738,0.0550074,3573.3,3573.2,2.1118]
[1732908072051,4.40035,3573.8,3573.3,0.55]
[1732908072052,2.79834,3573.6,3573.3,0.55]
[1732908072350,4.40035,3573.8,3573.3,0.55]
[1732908073403,1.6022,3573.8,3573.3,0.55]
[1732908073641,2.79799,3574.0,3573.4,2.79839]
[1732908073945,1.6022,3574.1,3573.5,3.34835]
[1732908074145,1.6022,3574.1,3573.5,0.55]
[1732908074357,2.79807,3573.9,3573.4,0.55]
[1732908074551,2.79815,3573.8,3573.3,0.55]
[1732908074750,2.85197108,3573.8,3573.3,0.55]
[1732908077979,2.85197108,3573.8,3573.3,1.320913]
[1732908078167,2.79823,3573.7,3573.3,1.320913]
[1732908078366,2.79832,3573.6,3573.3,1.320913]
[1732908078564,2.8520504,3573.6,3573.3,1.320913]
[1732908079283,2.79838,3573.5,3573.3,1.320913]
[1732908079455,2.79838,3573.5,3572.3,2.79931]
[1732908079456,2.79867,3573.2,3572.6,4.40426]
[1732908079641,0.05361076,3573.1,3572.6,4.40426]
[1732908080335,2.60228076,3573.2,3572.6,4.40426]
[1732908080540,2.60228076,3573.2,3572.7,3.53095617]
[1732908080742,2.60228076,3573.2,3572.9,0.55]
[1732908080962,2.79853,3573.3,3572.9,0.55]
[1732908081383,1.5468,3573.4,3572.9,0.55]
[1732908081876,0.05004323,3573.3,3572.9,0.55]
[1732908082644,0.05004323,3573.3,3572.9,3.34877]
[1732908082879,0.05004323,3573.3,3573.1,0.55]
[1732908082880,2.79855,3573.3,3573.1,0.55]
[1732908083178,2.79874,3573.1,3572.8,0.55]
[1732908083582,0.0498505,3573.0,3572.8,0.55]
[1732908083783,0.0498505,3573.0,3572.4,1.506]
[1732908083937,2.79897,3572.8,3572.5,0.55]
[1732908084140,2.79917,3572.5,3572.0,1.6126]
[1732908084359,2.79921,3572.5,3572.0,2.333796]
[1732908084584,0.04975425,3572.4,3572.0,2.333796]
[1732908085094,2.79939,3572.2,3572.0,0.721196]
[1732908085297,2.79948,3572.1,3571.7,1.6653]
[1732908085446,2.84918773,3572.1,3571.7,1.6653]
[1732908085645,0.04970773,3572.1,3571.7,1.6653]
[1732908085961,2.79939,3572.2,3571.7,4.46504]
[1732908086167,2.79939,3572.2,3571.8,0.726492]
[1732908086168,0.05042788,3572.0,3571.8,0.726492]
[1732908086383,0.05047135,3572.1,3572.0,4.35535]
[1732908086541,2.79905,3572.7,3572.0,4.90535]
[1732908086879,2.79905,3572.7,3572.1,0.55]
[1732908087052,2.79892,3572.8,3572.3,0.55]
[1732908087578,2.7991,3572.6,3572.3,0.55]
[1732908087785,1.5683,3573.0,3572.1,0.55]
[1732908087984,2.79899,3572.8,3572.1,3.34942]
[1732908088963,2.79834,3573.6,3573.0,0.55]
[1732908089147,2.79846,3573.4,3573.0,0.55]
[1732908089343,2.79849,3573.4,3573.1,0.41845623]
[1732908089549,2.79849,3573.4,3573.2,0.55]
[1732908089747,2.79849,3573.4,3572.9,0.55]
[1732908089979,2.79849,3573.4,3573.1,0.55]
[1732908090575,2.79829,3573.6,3573.1,0.55]
[1732908091195,2.7985,3573.4,3573.1,0.55]
[1732908092260,2.79837,3573.5,3573.1,0.55]
[1732908092660,4.45643,3573.7,3573.1,3.34868]
[1732908092965,2.79815,3573.8,3573.3,0.55]
[1732908093374,0.04849411,3573.7,3573.3,0.55]
[1732908093775,2.79815,3573.8,3573.3,0.55]
[1732908094002,0.0485435,3573.6,3573.3,0.55]
[1732908094180,0.04884964,3573.7,3573.3,0.55]
[1732908094471,0.04876273,3573.5,3573.3,1.36553969]
[1732908094661,2.79815,3573.8,3573.3,1.36553969]
[1732908094860,2.79809,3573.9,3573.3,1.36553969]
[1732908094861,2.84680696,3573.7,3573.3,1.36553969]
[1732908095095,0.04858696,3573.7,3573.3,1.36553969]
[1732908095294,0.04858696,3573.7,3573.3,4.16404969]
[1732908095468,4.44655,3574.0,3573.5,0.55]
[1732908095667,0.04896096,3573.9,3573.5,0.55]
[1732908096572,0.04896096,3573.9,3573.8,3.34814]
[1732908096776,1.5168,3574.5,3573.9,3.348]
[1732908096992,4.3144,3574.5,3573.9,3.348]
[1732908097184,0.04870386,3574.4,3573.9,3.348]
[1732908097372,0.04870386,3574.4,3574.0,2.79797]
[1732908097563,0.04870386,3574.4,3574.0,2.79793]
[1732908097902,2.79746,3574.7,3573.9,1.320304]
[1732908097903,2.79746,3574.7,3574.1,3.34789]
[1732908098104,0.04866042,3574.3,3574.1,3.34789]
[1732908098268,2.79743,3574.7,3574.1,1.2416314]
[1732908098600,2.79769,3574.4,3573.8,0.55]
[1732908098808,1.5637,3574.5,3573.6,4.35516]
[1732908098962,2.79783,3574.2,3573.7,3.05960591]
[1732908099387,0.04843398,3574.1,3573.7,3.05960591]
[1732908099600,0.04843398,3574.1,3573.7,0.26145591]
[1732908099802,0.04843398,3574.1,3573.8,2.79814]
[1732908100099,2.79771,3574.4,3573.9,0.55]
[1732908100469,0.04850491,3574.3,3574.1,0.55]
[1732908100685,4.36113,3574.8,3574.1,0.55]
[1732908100686,2.79753,3574.6,3574.1,0.55]
[1732908101004,0.04890483,3574.5,3574.1,0.55]
[1732908101204,2.84653483,3574.5,3574.3,0.55]
[1732908101552,0.04890483,3574.5,3574.3,0.55]
[1732908101804,2.79767,3574.4,3574.3,0.55]
[1732908102169,2.84623925,3574.4,3574.3,0.55]
[1732908105200,0.04856925,3574.4,3574.0,3.34792]
[1732908105402,2.79758,3574.6,3574.2,0.55]
[1732908105715,2.79758,3574.6,3574.1,0.55]
[1732908106018,0.04864198,3574.5,3574.3,0.55]
[1732908106538,4.32117,3575.1,3574.5,2.79755]
[1732908106681,2.79717,3575.1,3574.6,0.55]
[1732908107524,0.04888604,3575.0,3574.6,0.55]
[1732908107900,0.04888604,3575.0,3574.7,1.507]
[1732908108202,0.04888604,3575.0,3574.8,0.55]
[1732908108719,2.79728,3574.9,3574.8,0.55]
[1732908108904,2.79736,3574.8,3574.5,0.55]
[1732908109533,0.04888604,3575.0,3574.5,0.55]
[1732908109841,2.84612604,3575.0,3574.5,0.55]
[1732908111047,0.04888604,3575.0,3574.7,0.55]
[1732908111746,0.04983718,3574.9,3574.7,0.55]
[1732908112209,2.79717,3575.1,3574.7,0.55]
[1732908112611,3.0,3575.9,3574.9,0.55]
[1732908112836,2.79663,3575.8,3575.3,1.5772]
[1732908113245,2.79663,3575.8,3575.4,0.55]
[1732908114045,2.79651,3575.9,3575.4,3.34687]
[1732908114461,2.79651,3575.9,3575.4,0.55]
[1732908114639,2.79635,3576.1,3575.6,0.55]
[1732908114969,0.05018443,3575.8,3575.6,0.55]
[1732908115673,2.79619,3576.3,3575.7,2.0696]
[1732908115834,2.79634,3576.1,3575.8,0.55]
[1732908116330,0.04862987,3576.0,3575.8,0.55]
[1732908116539,2.84510987,3576.0,3575.9,2.0696]
[1732908117170,2.79657,3575.8,3575.7,2.0696]
[1732908117670,2.8436995,3575.8,3575.7,2.0696]
[1732908118375,2.8436995,3575.8,3575.4,0.55]
[1732908118376,0.0471295,3575.8,3575.4,0.55]
[1732908118533,2.79665,3575.7,3575.4,0.55]
[1732908118733,2.84378742,3575.7,3575.6,0.55]
[1732908119143,0.04713742,3575.7,3575.6,0.55]
[1732908119371,2.79656,3575.9,3575.6,2.1194]
[1732908119749,2.79665,3575.7,3575.6,2.1194]
[1732908120078,2.79665,3575.7,3574.6,2.79749]
[1732908120079,2.79706,3575.2,3574.9,1.5694]
[1732908120236,2.79706,3575.2,3574.9,1.8028424]
[1732908120436,2.7972,3575.0,3574.9,1.8028424]
[1732908120940,2.84435828,3575.0,3574.9,1.8028424]
[1732908121641,2.84435828,3575.0,3574.5,1.5694]
[1732908121838,2.84435828,3575.0,3574.6,0.55]
[1732908122348,0.04715828,3575.0,3574.6,0.55]
[1732908122742,2.79713,3575.1,3574.6,0.55]
[1732908122980,0.04709517,3574.9,3574.6,0.55]
[1732908123140,2.7973,3574.9,3574.8,0.55]
[1732908123961,2.79721,3575.0,3574.8,0.55]
[1732908125077,2.79728,3574.9,3574.8,0.55]
[1732908125278,2.79728,3574.9,3574.6,0.55]
[1732908125455,2.79736,3574.8,3574.6,0.55]
[1732908125641,2.79736,3574.8,3574.7,0.76194]
[1732908126059,2.79734,3574.9,3574.8,0.55]
[1732908126384,2.84388989,3574.9,3574.8,0.55]
[1732908127183,0.04654989,3574.9,3574.8,0.55]
[1732908128475,2.84382989,3574.9,3574.8,0.55]
[1732908128686,2.84382989,3574.9,3574.8,0.782724]
[1732908129903,2.84382989,3574.9,3574.5,0.55]
[1732908130204,2.79751,3574.6,3574.5,0.55]
[1732908130374,2.79759,3574.5,3574.1,1.6369]
[1732908130709,0.04636574,3574.4,3574.1,1.6369]
[1732908131505,0.04636574,3574.4,3574.2,0.55]
[1732908131703,0.04636574,3574.4,3574.3,1.348488]
[1732908133165,2.84403574,3574.4,3574.3,1.348488]
[1732908133388,2.79775,3574.3,3574.2,0.55]
[1732908133761,2.84388654,3574.3,3574.2,0.55]
[1732908134408,0.04613654,3574.3,3574.2,0.55]
[1732908134912,0.0462171,3574.3,3574.2,0.55]
[1732908135804,2.79759,3574.5,3574.2,0.55]
[1732908136010,2.79759,3574.5,3574.4,0.55]
[1732908138273,2.842327,3574.5,3574.4,0.55]
[1732908139304,2.842327,3574.5,3574.1,1.6369]
[1732908139305,2.79767,3574.4,3574.2,0.55]
[1732908139512,0.04461454,3574.3,3574.2,0.55]
[1732908140081,0.04461454,3574.3,3574.2,4.96942]
[1732908140268,2.79722,3575.0,3574.2,6.00070086]
[1732908140491,0.04333762,3574.9,3574.5,0.55]
[1732908141206,2.84061762,3574.9,3574.5,0.55]
[1732908141620,0.04333762,3574.9,3574.7,0.55]
[1732908141924,2.79717,3575.1,3574.7,0.55]
[1732908142071,0.04194463,3575.0,3574.9,0.55]
[1732908146623,2.83914463,3575.0,3574.9,0.55]
[1732908146835,2.7972,3575.0,3574.9,0.55]
[1732908147005,2.8391606,3575.0,3574.9,0.55]
[1732908150002,2.8391606,3575.0,3574.9,0.96901175]
[1732908150340,0.0419606,3575.0,3574.9,1.29894253]
[1732908150543,0.0897405,3575.3,3575.0,3.0]
[1732908150747,0.0897405,3575.3,3575.1,0.96901175]
[1732908150947,0.04211792,3575.2,3575.1,3.34707]
[1732908151248,0.0897405,3575.3,3575.1,3.76602246]
[1732908151546,0.0897405,3575.3,3575.2,1.69572332]
[1732908151755,0.0897405,3575.3,3574.9,4.89393078]
[1732908151902,2.79708,3575.2,3575.0,0.55]
[1732908152101,2.8867105,3575.3,3574.8,0.55]
[1732908153035,2.8867105,3575.3,3574.8,3.34735]
[1732908154433,0.04070598,3575.2,3574.8,3.34735]
[1732908154649,0.04070598,3575.2,3575.0,0.55]
[1732908155247,2.8867105,3575.3,3575.0,0.55]
[1732908155448,0.04066257,3575.1,3575.0,0.55]
[1732908155634,2.8867105,3575.3,3575.0,0.55]
[1732908155946,0.04070598,3575.2,3575.0,0.55]
[1732908156108,2.8867105,3575.3,3575.0,1.118223]
[1732908156455,0.04070598,3575.2,3575.0,1.118223]
[1732908156743,2.8867105,3575.3,3575.0,1.118223]
[1732908156922,0.04070598,3575.2,3575.0,1.118223]
[1732908157244,2.8867105,3575.3,3575.0,1.118223]
[1732908157748,0.04070598,3575.2,3575.0,1.118223]
[1732908157907,0.04070598,3575.2,3575.1,1.0186453]
[1732908158102,2.8867105,3575.3,3575.1,0.4686453]
[1732908158306,0.04070598,3575.2,3575.1,1.0186453]
[1732908158546,0.0897405,3575.3,3575.1,0.4686453]
[1732908158705,0.04069358,3575.2,3575.1,0.4686453]
[1732908158909,0.0897405,3575.3,3575.1,0.4686453]
[1732908159160,0.04070598,3575.2,3575.1,1.0186453]
[1732908159507,0.0897405,3575.3,3575.1,1.0186453]
[1732908159707,0.04070598,3575.2,3575.1,1.0186453]
[1732908160240,2.8867205,3575.3,3575.1,1.0186453]
[1732908160453,0.04070598,3575.2,3575.1,1.0186453]
[1732908160744,2.8867205,3575.3,3575.1,1.0186453]
[1732908160953,2.8867205,3575.3,3574.7,1.564]
[1732908160954,0.04069358,3575.2,3574.8,0.55]
[1732908161120,2.8867205,3575.3,3574.8,0.55]
[1732908161444,2.79718,3575.1,3574.8,0.55]
[1732908161694,2.79718,3575.1,3574.5,3.34758]
[1732908161848,0.04074933,3575.0,3574.5,3.34758]
[1732908162008,0.04074933,3575.0,3574.7,0.55]
[1732908162958,0.0897405,3575.3,3574.9,0.55]
[1732908163264,0.04083615,3575.2,3574.7,3.34738]
[1732908163551,0.04083615,3575.2,3575.1,4.90642]
[1732908163752,0.0897405,3575.3,3575.2,0.55]
[1732908163912,0.0897405,3575.3,3575.2,1.095642]
[1732908163913,0.13059933,3575.3,3575.2,1.095642]
[1732908164450,0.13059933,3575.3,3575.2,3.34704]
[1732908165840,0.13059933,3575.3,3575.2,0.55]
[1732908166376,0.13005298,3575.3,3575.2,0.55]
[1732908166567,0.13005298,3575.3,3575.1,1.5593]
[1732908167642,0.13005298,3575.3,3575.2,0.55]
[1732908167976,0.13005298,3575.3,3575.2,1.040641]
[1732908168353,0.13005298,3575.3,3575.2,3.837681]
[1732908169736,0.13005298,3575.3,3575.2,1.040641]
[1732908170250,0.13005298,3575.3,3575.0,0.55]
[1732908170474,0.13005298,3575.3,3574.9,0.55]
[1732908170475,1.5875,3575.2,3574.9,0.55]
[1732908170702,4.38459,3575.2,3574.7,0.55]
[1732908170978,0.04019592,3575.1,3574.7,0.55]
[1732908171142,0.04019592,3575.1,3574.9,0.55]
[1732908171336,2.79713,3575.1,3574.9,0.55]
[1732908171539,0.04013562,3575.0,3574.9,0.55]
[1732908174266,0.04013562,3575.0,3574.8,0.5645198]
[1732908174786,0.04013562,3575.0,3574.9,3.34728]
[1732908174987,0.04013562,3575.0,3574.9,4.09727778]
[1732908175156,0.0897405,3575.3,3574.9,4.09727778]
[1732908175364,0.04015417,3575.2,3574.9,4.09727778]
[1732908175565,0.0897405,3575.3,3574.9,4.09727778]
[1732908175792,0.04009387,3575.1,3574.9,4.09727778]
[1732908176001,0.0897405,3575.3,3575.0,0.74592076]
[1732908176303,0.0897405,3575.3,3575.1,0.55]
[1732908176762,0.04016532,3575.2,3575.1,0.55]
[1732908176964,0.0897405,3575.3,3575.1,0.55]
[1732908177165,0.04016532,3575.2,3575.1,0.55]
[1732908177462,0.0897405,3575.3,3575.1,1.01577206]
[1732908177661,0.0401822,3575.2,3575.1,1.01577206]
[1732908178101,0.0897405,3575.3,3575.1,1.01577206]
[1732908178506,0.04016532,3575.2,3575.1,1.01577206]
[1732908178806,2.8867105,3575.3,3575.1,0.55]
[1732908179302,2.83721532,3575.2,3574.6,3.34744]
[1732908179514,2.79713,3575.1,3574.6,0.55]
[1732908180015,0.04010166,3575.0,3574.6,0.55]
[1732908180513,0.04010166,3575.0,3574.6,3.34749]
[1732908180719,0.04010166,3575.0,3574.8,0.55]
[1732908182019,0.04010166,3575.0,3574.9,1.5594]
[1732908182371,2.8867305,3575.3,3574.9,1.5594]
[1732908182786,2.8372285,3575.2,3574.9,1.5594]
[1732908183712,2.8372285,3575.2,3574.8,0.55]
[1732908183919,2.8372285,3575.2,3574.8,1.4046672]
[1732908185122,0.0401885,3575.2,3574.8,1.4046672]
[1732908185326,2.8867605,3575.3,3574.8,1.4046672]
[1732908185621,2.83700566,3575.2,3574.8,1.4046672]
[1732908186323,0.03995566,3575.2,3575.0,0.55]
[1732908186528,0.03995566,3575.2,3575.1,1.02519272]
[1732908186711,0.0897405,3575.3,3575.1,1.02519272]
[1732908187021,0.03997479,3575.2,3575.1,1.02519272]
[1732908187182,0.03997479,3575.2,3575.1,3.82231272]
[1732908187387,0.0897405,3575.3,3575.2,0.55]
[1732908187591,0.0897405,3575.3,3575.2,1.26695027]
[1732908188344,0.0897405,3575.3,3575.2,0.55]
[1732908188529,0.1297587,3575.3,3575.2,0.55]
[1732908189625,2.9267887,3575.3,3574.7,1.6365]
[1732908189958,2.79724,3575.0,3574.4,5.55529543]
[1732908190161,2.79724,3575.0,3574.5,3.63289154]
[1732908190340,1.5444,3575.2,3574.5,0.83531154]
[1732908190341,0.03929455,3574.9,3574.5,0.83531154]
[1732908190638,2.79719,3575.1,3574.5,2.79759]
[1732908190842,0.0392849,3574.8,3574.6,0.55]
[1732908191009,2.79719,3575.1,3574.6,0.55]
[1732908191210,0.03924148,3574.7,3574.6,0.55]
[1732908191412,2.79719,3575.1,3574.6,0.55]
[1732908191635,2.79719,3575.1,3574.8,0.55]
[1732908192142,0.03938862,3575.0,3574.8,0.55]
[1732908192345,2.8867705,3575.3,3574.8,0.55]
[1732908192872,2.83649366,3575.2,3574.8,0.55]
[1732908195248,2.79717,3575.1,3574.8,0.55]
[1732908195416,2.83649366,3575.2,3574.8,0.55]
[1732908195746,2.79728,3574.9,3574.5,0.55]
[1732908196063,0.03931377,3574.8,3574.7,0.55]
[1732908196352,2.79725,3575.0,3574.7,0.55]
[1732908196514,2.83666617,3574.9,3574.7,0.55]
[1732908196849,5.59499,3574.7,3574.2,3.0]
[1732908197011,5.59499,3574.7,3574.1,4.45118]
[1732908197012,2.79758,3574.6,3574.1,1.6533]
[1732908197219,2.79782,3574.2,3573.8,1.6533]
[1732908197458,2.79782,3574.2,3573.9,0.445147]
[1732908197747,0.03898365,3574.1,3573.9,0.445147]
[1732908197943,4.44183,3574.4,3573.8,4.45139]
[1732908198152,2.79793,3574.1,3573.5,4.43453]
[1732908198457,1.6335,3573.4,3573.2,0.1358496]
[1732908198661,2.79853,3573.3,3573.2,0.1358496]
[1732908198861,0.03845144,3573.3,3573.2,0.1358496]
[1732908200551,0.03845144,3573.3,3573.2,5.0713596]
[1732908200716,4.33541,3574.0,3573.3,0.55]
[1732908201047,2.79819,3573.8,3573.3,0.55]
[1732908201411,4.33541,3574.0,3573.3,0.55]
[1732908201611,4.33541,3574.0,3573.4,2.82642349]
[1732908201811,1.5374,3574.0,3573.3,0.55]
[1732908202061,2.79807,3573.9,3573.4,0.60890354]
[1732908203145,0.03838797,3573.8,3573.4,3.40733354]
[1732908203334,0.03838797,3573.8,3573.5,0.55]
[1732908203536,0.03838797,3573.8,3573.7,2.79822]
[1732908203744,0.03838797,3573.8,3573.7,3.34822]
[1732908203970,0.03838797,3573.8,3573.7,4.02376335]
[1732908204877,0.03838797,3573.8,3573.7,5.63296335]
[1732908208048,0.03838797,3573.8,3573.7,5.66094097]
[1732908208247,0.03838797,3573.8,3573.7,5.63296335]
[1732908209781,0.03838797,3573.8,3573.7,8.63296335]
[1732908211686,0.03838797,3573.8,3573.7,11.35774331]
[1732908212183,0.03838797,3573.8,3573.7,11.35770776]
[1732908213779,0.03838797,3573.8,3573.7,9.05050965]
[1732908213962,0.07695622,3573.8,3573.7,9.05050965]
[1732908215379,0.03838797,3573.8,3573.7,9.05050965]
[1732908215792,0.07697311,3573.8,3573.7,9.05050965]
[1732908216253,0.07697311,3573.8,3573.7,6.05050965]
[1732908217539,0.03838797,3573.8,3573.7,6.0507531]
[1732908217775,0.07567867,3573.8,3573.7,6.0507531]
[1732908218379,0.07567867,3573.8,3573.7,5.63296335]
[1732908218681,0.07567867,3573.8,3573.7,6.05080249]
[1732908218845,0.07567867,3573.8,3573.7,5.63296335]
[1732908219048,0.07567867,3573.8,3573.7,6.05083417]
[1732908222782,0.07567867,3573.8,3573.7,4.44163417]
[1732908223080,0.07567867,3573.8,3573.7,0.96787082]
[1732908227266,2.87381867,3573.8,3573.7,0.41787082]
[1732908229689,0.07567867,3573.8,3573.7,0.41787082]
[1732908231792,0.07567867,3573.8,3573.5,3.34832]
[1732908232189,0.07567867,3573.8,3573.7,0.41905658]
[1732908244353,2.87381867,3573.8,3573.7,0.41905658]
[1732908244531,4.44821867,3573.8,3573.7,0.41905658]
[1732908246712,1.65007867,3573.8,3573.7,0.41905658]
[1732908246910,0.07567867,3573.8,3573.7,3.76727658]
[1732908247386,0.07567867,3573.8,3573.7,5.31617658]
[1732908247917,0.03838797,3573.8,3573.7,5.31617658]
[1732908248131,0.03838797,3573.8,3573.7,9.26724676]
[1732908248444,4.29944,3575.2,3574.6,4.30035]
[1732908248648,2.79717,3575.1,3574.7,0.41905658]
[1732908248809,2.83366819,3575.1,3574.8,0.41910842]
[1732908249013,2.83366819,3575.1,3575.0,0.55]
[1732908249341,2.83366819,3575.1,3575.0,0.96910842]
[1732908250421,2.83366819,3575.1,3575.0,0.55]
[1732908250620,2.83366819,3575.1,3575.0,0.96876127]
[1732908255637,0.03649819,3575.1,3575.0,0.96876127]
[1732908255839,2.83361819,3575.1,3575.0,0.96876127]
[1732908256529,0.03649819,3575.1,3575.0,0.96876127]
[1732908256739,0.03649819,3575.1,3575.0,2.9788744]
[1732908257053,0.03580476,3575.1,3575.0,1.3453744]
[1732908257267,0.03580476,3575.1,3575.0,0.96876127]
[1732908257423,0.0897405,3575.3,3575.0,0.96876127]
[1732908257616,0.0897405,3575.3,3575.2,0.55]
[1732908257812,0.0897405,3575.3,3575.2,0.96876127]
[1732908258630,0.12532151,3575.3,3575.2,0.96876127]
[1732908259154,2.92228151,3575.3,3575.2,0.96876127]
[1732908259395,4.53058151,3575.3,3575.2,0.96876127]
[1732908259554,4.53058151,3575.3,3575.2,0.55]
[1732908260058,2.7972,3575.0,3574.9,0.55]
[1732908260359,2.7972,3575.0,3574.9,0.96788746]
[1732908260653,2.83266907,3575.0,3574.9,0.96788746]
[1732908261761,4.39706907,3575.0,3574.9,0.96788746]
[1732908261916,2.79743,3574.7,3574.6,0.55]
[1732908262112,2.79743,3574.7,3574.6,0.96789133]
[1732908262323,2.83277246,3574.7,3574.6,0.96789133]
[1732908263532,2.83277246,3574.7,3574.6,0.96795266]
[1732908263734,2.83277246,3574.7,3574.6,0.41795266]
[1732908263972,2.79775,3574.3,3573.9,1.574]
[1732908264135,2.79775,3574.3,3574.0,0.41796949]
[1732908264345,2.79775,3574.3,3574.1,0.41796949]
[1732908264548,0.03394051,3574.2,3573.9,2.68334923]
[1732908264749,2.83177051,3574.2,3574.0,0.41800079]
[1732908265077,2.83177051,3574.2,3573.9,2.68334923]
[1732908265078,2.79783,3574.2,3574.1,0.96800079]
[1732908265730,2.83170339,3574.2,3574.1,0.96800079]
[1732908268770,0.03387339,3574.2,3574.1,0.96800079]
[1732908269080,0.03387339,3574.2,3574.1,1.22220087]
[1732908269233,4.37165,3574.5,3574.1,1.22220087]
[1732908269579,4.37165,3574.5,3574.3,0.55]
[1732908269872,4.37165,3574.5,3574.1,0.55]
[1732908270033,4.37165,3574.5,3573.9,1.574]
[1732908270034,2.79769,3574.4,3574.0,0.55]
[1732908270704,2.79724,3575.0,3574.2,2.79777]
[1732908270705,2.79731,3574.9,3574.2,2.79777]
[1732908270980,2.79731,3574.9,3573.9,2.30778455]
[1732908270981,4.40437,3575.0,3574.4,3.34766]
[1732908271587,2.7972,3575.0,3574.4,3.34766]
[1732908271786,1.6968405,3575.3,3574.4,3.34766]
[1732908271989,2.79711,3575.2,3574.7,0.55]
[1732908272291,2.7972,3575.0,3574.6,0.55]
[1732908272459,2.79711,3575.2,3574.8,0.55]
[1732908272659,0.0897405,3575.3,3575.0,0.55]
[1732908272872,0.0341483,3575.1,3575.0,0.55]
[1732908273072,0.0897405,3575.3,3575.0,0.55]
[1732908273277,0.0897405,3575.3,3575.2,2.79704]
[1732908273481,0.0897405,3575.3,3575.2,1.03402092]
[1732908276592,0.122947,3575.3,3575.2,1.03402092]
[1732908284697,2.79725,3575.0,3574.3,4.32773]
[1732908284999,4.29921,3574.7,3574.1,2.79788]
[1732908285303,0.03315071,3574.6,3574.1,2.79788]
[1732908286101,0.03315071,3574.6,3574.2,0.78426106]
[1732908286303,0.03315071,3574.6,3574.2,1.69921594]
[1732908286516,0.03315071,3574.6,3574.2,0.91495488]
[1732908286819,2.83071071,3574.6,3574.2,0.91495488]
[1732908287183,0.03315071,3574.6,3574.2,0.91495488]
[1732908287685,2.79764,3574.5,3574.4,0.55]
[1732908287902,2.83076418,3574.5,3574.1,0.55]
[1732908288779,0.03312418,3574.5,3574.1,0.55]
[1732908289316,2.79768,3574.4,3573.8,0.55]
[1732908289526,1.5812,3574.3,3573.8,0.55]
[1732908289683,0.03271195,3574.2,3573.8,0.55]
[1732908289881,1.5812,3574.3,3573.8,0.55]